bitfinex-derivatives/quotes_ETHF0:USTF0_20250326
["timestamp","ask_amount","ask_price","bid_price","bid_amount"]
[1743021361717,1.77784,2016.0,2015.9,3.71494262]
[1743021362118,1.77784,2016.0,2015.9,2.72285262]
[1743021362320,1.77784,2016.0,2015.9,3.71494262]
[1743021362520,1.77784,2016.0,2015.9,2.72285262]
[1743021362823,1.77784,2016.0,2015.9,3.71500498]
[1743021363423,1.77784,2016.0,2015.9,2.72291498]
[1743021363727,1.77784,2016.0,2015.9,3.71500498]
[1743021364326,1.77784,2016.0,2015.9,2.72291498]
[1743021364723,1.77784,2016.0,2015.9,3.71500498]
[1743021365315,1.77784,2016.0,2015.9,2.72291498]
[1743021365719,1.77784,2016.0,2015.9,1.32231498]
[1743021365916,1.77784,2016.0,2015.9,2.31440498]
[1743021366120,1.77784,2016.0,2015.9,1.32231498]
[1743021366320,1.77784,2016.0,2015.9,2.31440498]
[1743021366526,1.77784,2016.0,2015.9,2.31382485]
[1743021367122,2.57514,2016.0,2015.9,2.31382485]
[1743021367325,5.83744509,2016.3,2016.2,0.99194]
[1743021367517,2.56943509,2016.3,2016.2,4.88083676]
[1743021368029,2.56943509,2016.3,2016.2,5.51368239]
[1743021368230,1.57754509,2016.3,2016.2,5.51368239]
[1743021368426,2.56943509,2016.3,2016.2,5.51368239]
[1743021368626,3.98993509,2016.3,2016.2,5.51368239]
[1743021369132,2.99804509,2016.3,2016.2,5.51368239]
[1743021369534,3.98993509,2016.3,2016.2,5.51368239]
[1743021370326,2.99804509,2016.3,2016.2,5.51368239]
[1743021370628,3.98993509,2016.3,2016.2,5.51368239]
[1743021370828,1.42794509,2016.3,2016.2,5.51368239]
[1743021371130,2.41983509,2016.3,2016.2,5.51368239]
[1743021372134,0.99933509,2016.3,2016.2,5.51322249]
[1743021373728,4.20713509,2016.3,2016.2,1.31348249]
[1743021374032,0.99209,2015.9,2015.8,1.3794]
[1743021374333,0.99224,2015.7,2015.6,0.99221]
[1743021374532,0.99224,2015.7,2015.6,2.37161]
[1743021374828,0.99224,2015.7,2015.6,1.3794]
[1743021375239,0.99238,2015.3,2015.2,2.58362]
[1743021375529,0.99238,2015.3,2015.2,3.97912]
[1743021375736,0.99238,2015.4,2015.3,0.99237]
[1743021375934,0.99238,2015.3,2015.2,3.97911]
[1743021376227,0.7667,2015.6,2015.2,5.46776]
[1743021376435,1.75894,2015.6,2015.5,3.2078]
[1743021376829,0.99224,2015.6,2015.5,5.59558]
[1743021377535,0.99224,2015.6,2015.5,4.6033]
[1743021379136,0.99224,2015.6,2015.5,5.59558]
[1743021379432,0.99224,2015.6,2015.5,4.6033]
[1743021380634,0.99224,2015.6,2015.5,5.59558]
[1743021381733,0.99224,2015.6,2015.5,4.6033]
[1743021381938,0.99224,2015.6,2015.5,3.2078]
[1743021382132,0.99233,2015.4,2015.3,1.3272]
[1743021382737,3.20043,2015.4,2015.3,1.3272]
[1743021383435,0.99248,2015.1,2015.0,1.00179509]
[1743021383643,0.99248,2015.1,2015.0,2.32899509]
[1743021385034,1.79928,2015.1,2015.0,2.32899509]
[1743021386746,0.99248,2015.1,2015.0,2.32899509]
[1743021388049,0.99248,2015.1,2015.0,1.00179509]
[1743021389551,0.99248,2015.1,2015.0,2.32119509]
[1743021389846,0.99248,2015.1,2015.0,1.00179509]
[1743021390251,5.83,2015.1,2014.8,1.3194]
[1743021390547,0.99258,2014.9,2014.8,1.3194]
[1743021390947,2.42848,2014.9,2014.8,1.3194]
[1743021391556,2.42848,2014.9,2014.8,2.31203]
[1743021391754,2.42848,2014.9,2014.8,1.3194]
[1743021393855,0.99258,2014.9,2014.8,1.3194]
[1743021394548,2.35448,2014.9,2014.8,1.3194]
[1743021395051,3.12378,2014.9,2014.8,1.3194]
[1743021395355,0.99268,2014.7,2014.6,0.00744509]
[1743021398957,4.20048,2014.7,2014.6,0.00744509]
[1743021401360,0.99268,2014.7,2014.6,0.00744509]
[1743021401656,0.99268,2014.7,2014.6,1.42724509]
[1743021401956,0.99268,2014.7,2014.6,3.17977509]
[1743021407061,0.99268,2014.7,2014.6,2.18704509]
[1743021407262,0.99268,2014.7,2014.6,3.17977509]
[1743021413459,0.99268,2014.7,2014.6,3.85607962]
[1743021413866,0.99268,2014.7,2014.6,2.18704509]
[1743021414058,0.99268,2014.7,2014.6,3.17977509]
[1743021415463,0.99268,2014.7,2014.6,4.48438198]
[1743021415968,0.99268,2014.7,2014.6,4.48474585]
[1743021417766,0.99268,2014.7,2014.6,4.48498606]
[1743021419569,0.99268,2014.7,2014.6,3.80800059]
[1743021419867,0.99268,2014.7,2014.6,4.4851677]
[1743021422368,0.99262,2014.9,2014.8,0.99263]
[1743021422568,0.99262,2014.9,2014.8,1.66979711]
[1743021422764,0.99262,2014.9,2014.8,2.29759298]
[1743021423967,0.99262,2014.9,2014.8,1.6208555]
[1743021424168,2.38332,2014.9,2014.8,1.6208555]
[1743021424368,2.38332,2014.9,2014.8,2.29752586]
[1743021424764,2.38332,2014.9,2014.8,2.29748002]
[1743021425778,2.38332,2014.9,2014.8,1.6208555]
[1743021426372,2.38332,2014.9,2014.8,0.99263]
[1743021426674,0.99263,2014.8,2014.7,2.35374]
[1743021426869,0.99263,2014.8,2014.7,3.65807705]
[1743021427572,0.99248,2015.2,2015.1,0.99243]
[1743021428376,2.61648,2015.2,2015.1,0.99243]
[1743021429779,2.61648,2015.2,2015.1,2.37203]
[1743021434380,1.624,2015.2,2015.1,2.37203]
[1743021434675,0.00744509,2015.3,2015.2,0.99243]
[1743021434873,1.4173,2015.6,2015.5,0.99228]
[1743021435077,1.4173,2015.6,2015.5,4.20008]
[1743021435272,0.7601,2015.7,2015.6,0.99224]
[1743021435478,1.80288,2015.8,2015.7,0.99219]
[1743021435682,0.8107,2015.8,2015.7,0.99219]
[1743021435881,2.0671,2015.9,2015.8,0.99214]
[1743021436073,2.0671,2015.9,2015.8,5.61144]
[1743021436273,3.05919,2015.9,2015.8,5.61144]
[1743021439179,0.99219,2015.7,2015.6,3.36044509]
[1743021439383,0.99219,2015.7,2015.6,4.35268509]
[1743021440482,0.99219,2015.7,2015.6,5.78678509]
[1743021440884,0.99219,2015.7,2015.6,5.80678509]
[1743021441181,0.99219,2015.7,2015.6,5.78678509]
[1743021441386,0.99219,2015.7,2015.6,2.43378509]
[1743021442388,0.99219,2015.7,2015.6,2.48378509]
[1743021442585,0.99219,2015.7,2015.6,2.43378509]
[1743021442790,0.99219,2015.7,2015.6,2.43373509]
[1743021442992,2.33278,2015.8,2015.7,0.99219]
[1743021443289,2.33278,2015.8,2015.7,2.38759]
[1743021443703,2.33278,2015.8,2015.7,2.39759]
[1743021443996,2.33278,2015.8,2015.7,2.38759]
[1743021448689,2.33278,2015.8,2015.7,1.3954]
[1743021448888,0.99219,2015.7,2015.6,0.00744509]
[1743021449093,0.99233,2015.4,2015.3,1.3457]
[1743021449295,0.99243,2015.2,2015.1,3.2078]
[1743021449997,2.32733,2015.2,2015.1,4.20028]
[1743021450491,2.32733,2015.2,2015.1,3.2078]
[1743021450994,0.99253,2015.0,2014.9,1.35314509]
[1743021452093,0.99253,2015.0,2014.9,2.34572509]
[1743021453092,0.99253,2015.0,2014.9,1.35314509]
[1743021460804,4.46643,2015.0,2014.9,1.35314509]
[1743021462996,3.4739,2015.0,2014.9,2.34572509]
[1743021463200,3.4739,2015.0,2014.9,3.34402509]
[1743021464302,4.46643,2015.0,2014.9,3.34402509]
[1743021465604,3.4739,2015.0,2014.9,3.34402509]
[1743021466406,4.46643,2015.0,2014.9,3.34402509]
[1743021466804,3.4739,2015.0,2014.9,3.34402509]
[1743021469605,3.4739,2015.0,2014.9,6.55182509]
[1743021471814,3.4739,2015.0,2014.9,7.22561829]
[1743021472215,3.4739,2015.0,2014.9,7.22573634]
[1743021473315,3.4739,2015.0,2014.9,7.85176171]
[1743021474216,3.4739,2015.0,2014.9,7.85209867]
[1743021474411,3.4739,2015.0,2014.9,7.22631717]
[1743021475014,3.4739,2015.0,2014.9,8.20131717]
[1743021475218,3.4739,2015.0,2014.9,8.20158972]
[1743021476121,3.4739,2015.0,2014.9,8.82793601]
[1743021480826,3.4739,2015.0,2014.9,8.82902418]
[1743021481619,3.4739,2015.0,2014.9,10.75902418]
[1743021481924,3.4739,2015.0,2014.9,8.82902418]
[1743021482320,3.4739,2015.0,2014.9,8.82883442]
[1743021483821,3.4739,2015.0,2014.9,49.62883442]
[1743021484026,3.4739,2015.0,2014.9,48.95317138]
[1743021484324,3.4739,2015.0,2014.9,49.62838931]
[1743021484722,3.4739,2015.0,2014.9,49.63838931]
[1743021488127,3.4739,2015.0,2014.9,49.63806272]
[1743021488321,3.4739,2015.0,2014.9,5.51906272]
[1743021488527,3.4739,2015.0,2014.9,8.82606272]
[1743021488922,5.556,2015.0,2014.9,8.82606272]
[1743021489829,5.556,2015.0,2014.9,8.82664925]
[1743021491732,5.556,2015.0,2014.9,8.82709024]
[1743021493733,5.556,2015.0,2014.9,10.12727265]
[1743021495033,6.54853,2015.0,2014.9,10.12727265]
[1743021495433,6.54853,2015.0,2014.9,9.45165791]
[1743021495635,6.54853,2015.0,2014.9,10.12736539]
[1743021495931,5.556,2015.0,2014.9,10.12736539]
[1743021497434,5.556,2015.0,2014.9,10.12748828]
[1743021498027,6.54853,2015.0,2014.9,10.12748828]
[1743021498227,5.556,2015.0,2014.9,10.12748828]
[1743021500637,5.556,2015.0,2014.9,6.91968828]
[1743021500841,5.556,2015.0,2014.9,10.12748828]
[1743021501335,5.556,2015.0,2014.9,10.12747072]
[1743021501737,6.54853,2015.0,2014.9,10.12747072]
[1743021502041,5.556,2015.0,2014.9,10.12747072]
[1743021503238,5.556,2015.0,2014.9,10.12747438]
[1743021504140,6.54853,2015.0,2014.9,10.12747438]
[1743021504334,5.556,2015.0,2014.9,10.12747438]
[1743021505232,5.556,2015.0,2014.9,10.12742539]
[1743021505541,6.54853,2015.0,2014.9,10.12742539]
[1743021506733,5.556,2015.0,2014.9,10.12742539]
[1743021507040,6.54853,2015.0,2014.9,4.51804919]
[1743021507239,6.54853,2015.0,2014.9,3.84217791]
[1743021507640,6.54853,2015.0,2014.9,3.21524509]
[1743021512041,0.99268,2014.7,2014.6,3.2078]
[1743021512244,0.99268,2014.7,2014.6,4.20053]
[1743021512632,1.3423,2014.8,2014.7,0.99268]
[1743021512838,0.99258,2014.9,2014.8,0.99258]
[1743021513245,2.33488,2014.9,2014.8,2.39988]
[1743021513942,3.4739,2015.0,2014.9,0.99258]
[1743021514146,3.4739,2015.0,2014.9,6.96524023]
[1743021514338,4.46643,2015.0,2014.9,6.96524023]
[1743021514644,3.4739,2015.0,2014.9,6.28968]
[1743021514836,4.46643,2015.0,2014.9,6.28968]
[1743021515246,4.46643,2015.0,2014.9,6.96516836]
[1743021517051,3.4739,2015.0,2014.9,6.96516836]
[1743021517548,3.4739,2015.0,2014.9,7.59236087]
[1743021518944,0.99232,2015.5,2015.0,0.99253]
[1743021519250,3.68022,2015.5,2015.4,0.99233]
[1743021519434,3.68022,2015.5,2015.3,0.99238]
[1743021519639,1.318,2015.4,2015.3,3.10378]
[1743021519847,2.31033,2015.4,2015.3,3.10378]
[1743021520041,1.3699,2015.5,2015.3,3.10378]
[1743021520042,2.36222,2015.5,2015.4,0.99233]
[1743021520247,2.36222,2015.5,2015.4,2.40673]
[1743021521136,1.32544509,2015.6,2015.5,0.99228]
[1743021521341,1.32544509,2015.6,2015.5,2.38188]
[1743021521841,0.00744509,2015.6,2015.5,5.58968]
[1743021522440,1.37134509,2015.6,2015.5,5.58968]
[1743021523738,2.36358509,2015.6,2015.5,5.58968]
[1743021523939,1.37134509,2015.6,2015.5,5.58968]
[1743021525649,0.00744509,2015.6,2015.5,5.58968]
[1743021526551,2.41018509,2015.6,2015.5,5.58968]
[1743021527652,1.41794509,2015.6,2015.5,5.58968]
[1743021528750,2.41018509,2015.6,2015.5,5.58968]
[1743021529049,1.41794509,2015.6,2015.5,5.58968]
[1743021529550,2.41018509,2015.6,2015.5,5.58968]
[1743021529850,1.41794509,2015.6,2015.5,5.58968]
[1743021530058,2.41018509,2015.6,2015.5,5.58968]
[1743021531944,1.41794509,2015.6,2015.5,5.58968]
[1743021532441,2.41018509,2015.6,2015.5,4.5974]
[1743021532854,2.41018509,2015.6,2015.5,3.2078]
[1743021533645,0.99253,2015.0,2014.9,3.2078]
[1743021533845,0.99253,2015.0,2014.9,3.88152942]
[1743021534154,0.99253,2015.0,2014.9,4.82586731]
[1743021534353,0.99253,2015.0,2014.9,3.83328731]
[1743021534551,0.99253,2015.0,2014.9,4.82586731]
[1743021534758,0.99253,2015.0,2014.9,5.51548]
[1743021535258,2.36093,2015.0,2014.9,5.51548]
[1743021541161,1.3684,2015.0,2014.9,5.51548]
[1743021541360,0.99253,2015.0,2014.9,5.51548]
[1743021542958,1.68913,2015.1,2015.0,0.99253]
[1743021543164,3.08053,2015.1,2015.0,2.31923]
[1743021543460,2.48805509,2015.6,2015.1,2.48121]
[1743021543667,0.99241,2015.3,2015.2,5.52687]
[1743021544151,0.99241,2015.3,2015.2,46.32687]
[1743021547174,2.38376,2015.4,2015.3,0.99238]
[1743021547374,2.38376,2015.4,2015.3,2.42298]
[1743021548673,2.38376,2015.4,2015.3,0.99238]
[1743021548878,0.99238,2015.3,2015.2,5.55969]
[1743021549176,0.99238,2015.3,2015.2,4.20019]
[1743021549177,2.29638,2015.3,2015.2,4.20019]
[1743021554774,2.29638,2015.3,2015.2,3.2078]
[1743021554977,0.99253,2015.0,2014.9,4.6508]
[1743021555173,0.99258,2014.9,2014.8,0.99261]
[1743021555483,1.70268,2014.9,2014.8,0.99261]
[1743021556293,0.7101,2014.9,2014.8,0.99261]
[1743021556497,1.3745,2015.1,2015.0,0.99253]
[1743021556688,1.66375,2015.2,2015.1,0.99248]
[1743021557393,3.05695,2015.2,2015.1,0.99248]
[1743021557894,0.7101,2015.3,2015.2,0.99243]
[1743021558096,2.38556,2015.4,2015.3,0.99238]
[1743021558494,1.3932,2015.4,2015.3,4.20018]
[1743021558801,2.37511,2015.5,2015.4,0.99233]
[1743021559004,3.76831,2015.5,2015.4,0.99233]
[1743021559502,3.10201,2015.5,2015.4,0.99233]
[1743021561595,2.1097,2015.5,2015.4,0.99233]
[1743021562800,2.42462509,2015.6,2015.5,0.99228]
[1743021563303,1.43234509,2015.6,2015.5,0.99228]
[1743021563703,2.42458509,2015.6,2015.5,0.99228]
[1743021564604,1.43234509,2015.6,2015.5,0.99228]
[1743021564806,2.42458509,2015.6,2015.5,0.99228]
[1743021566307,0.00744509,2015.6,2015.5,0.99228]
[1743021566500,0.00744509,2015.6,2015.5,2.35454784]
[1743021566996,0.00744509,2015.6,2015.5,2.98004899]
[1743021568306,0.00744509,2015.6,2015.5,2.97986164]
[1743021568494,5.79408,2016.1,2015.5,2.97986164]
[1743021568495,3.2078,2016.2,2015.5,7.35158164]
[1743021568699,4.19976,2016.2,2016.1,0.99199]
[1743021569606,0.99201,2016.1,2016.0,0.99201]
[1743021569802,3.67731,2016.1,2016.0,0.99201]
[1743021570106,2.6853,2016.1,2016.0,2.39501]
[1743021571906,2.6853,2016.1,2016.0,5.60281]
[1743021572305,0.99193,2016.3,2016.2,0.99194]
[1743021572505,2.37283,2016.3,2016.2,0.99194]
[1743021573203,1.3809,2016.3,2016.2,0.99194]
[1743021573604,3.72309,2016.3,2016.2,0.99194]
[1743021577508,0.00744509,2016.4,2016.3,0.99189]
[1743021577710,0.00744509,2016.4,2016.3,4.19969]
[1743021578007,0.99928509,2016.4,2016.3,4.85679]
[1743021578306,0.99928509,2016.4,2016.3,6.19109]
[1743021578706,0.99928509,2016.4,2016.3,5.53399]
[1743021579103,2.31808509,2016.4,2016.3,5.53399]
[1743021580699,2.31808509,2016.4,2016.3,4.5421]
[1743021581205,2.31808509,2016.4,2016.3,5.53399]
[1743021585318,1.32624509,2016.4,2016.3,5.53399]
[1743021585615,2.31808509,2016.4,2016.3,5.53399]
[1743021586017,1.32624509,2016.4,2016.3,5.53399]
[1743021589415,0.00744509,2016.4,2016.3,5.53399]
[1743021589616,3.4711,2016.6,2016.5,0.99179]
[1743021589922,3.2078,2017.1,2016.9,0.9916]
[1743021589923,1.3593,2017.0,2016.9,0.9916]
[1743021590120,1.3509,2017.1,2017.0,0.99155]
[1743021590317,2.35074,2017.3,2017.2,0.99145]
[1743021590512,1.3593,2017.3,2017.2,4.19925]
[1743021590713,1.3649,2017.4,2017.3,0.9914]
[1743021590916,1.3649,2017.4,2017.3,2.3607]
[1743021592318,2.7805,2017.4,2017.3,2.3607]
[1743021592618,2.7805,2017.4,2017.3,3.0378]
[1743021593124,3.77185,2017.4,2017.3,3.0378]
[1743021594525,3.77185,2017.4,2017.3,1.3693]
[1743021595726,0.9914,2017.3,2017.2,3.2078]
[1743021595921,0.9915,2017.1,2017.0,1.40094509]
[1743021596115,0.9915,2017.1,2017.0,0.00744509]
[1743021596715,1.6887,2017.1,2017.0,0.00744509]
[1743021600219,0.9915,2017.1,2017.0,0.00744509]
[1743021600425,0.9915,2017.1,2017.0,0.99899509]
[1743021600729,0.9915,2017.1,2017.0,0.00744509]
[1743021600928,0.9915,2017.1,2017.0,1.43224509]
[1743021601228,1.6689,2017.1,2017.0,1.43224509]
[1743021602622,1.6689,2017.1,2017.0,0.00744509]
[1743021603123,1.6689,2017.1,2017.0,1.38484509]
[1743021604817,1.6689,2017.1,2017.0,0.00744509]
[1743021618335,3.8852,2017.1,2016.3,3.2078]
[1743021618537,0.99174,2016.6,2016.5,0.7087]
[1743021619338,2.33914,2016.6,2016.5,0.7087]
[1743021620338,0.99179,2016.5,2016.4,0.6596]
[1743021620532,2.33919,2016.5,2016.4,0.6596]
[1743021621638,2.33919,2016.5,2016.4,2.1014]
[1743021629441,4.95926,2016.4,2016.0,40.8]
[1743021629637,4.95926,2016.4,2015.4,3.2078]
[1743021629638,3.2078,2016.1,2015.4,3.2078]
[1743021629837,3.2078,2015.5,2015.3,1.3655]
[1743021630043,0.99233,2015.4,2015.3,1.3655]
[1743021630243,2.31353,2015.4,2015.3,1.3655]
[1743021630648,3.17281,2016.0,2015.4,2.48084]
[1743021630944,0.99219,2015.8,2015.7,0.99219]
[1743021631148,0.99219,2015.8,2015.7,1.69109]
[1743021633851,0.99219,2015.8,2015.7,0.6989]
[1743021634051,0.99219,2015.7,2015.6,3.2078]
[1743021634259,0.99228,2015.5,2015.4,1.64672]
[1743021634854,2.42957,2015.6,2015.5,0.99228]
[1743021635346,2.42957,2015.6,2015.5,2.40358]
[1743021635855,2.42957,2015.6,2015.5,1.4113]
[1743021636152,0.99228,2015.5,2015.4,0.6544]
[1743021636452,2.36818,2015.5,2015.4,2.0283]
[1743021637154,2.36818,2015.5,2015.4,3.02063]
[1743021637354,2.36818,2015.5,2015.4,2.0283]
[1743021637559,2.36818,2015.5,2015.4,3.02063]
[1743021637948,2.36818,2015.5,2015.4,2.0283]
[1743021638952,2.36818,2015.5,2015.4,3.02063]
[1743021639752,0.99238,2015.3,2015.2,3.309]
[1743021639949,0.99238,2015.3,2015.2,4.7063]
[1743021640150,0.99238,2015.3,2015.2,5.69869]
[1743021640455,0.99238,2015.3,2015.2,5.69873]
[1743021640852,0.99238,2015.3,2015.2,2.38973]
[1743021642944,0.99238,2015.3,2014.8,0.39574238]
[1743021642945,0.9927,2014.8,2014.7,0.99265]
[1743021643156,0.9927,2014.8,2014.7,3.2078]
[1743021643354,0.99273,2014.6,2014.5,1.344]
[1743021643546,0.99273,2014.6,2014.5,42.144]
[1743021643850,0.99273,2014.6,2014.5,43.13678]
[1743021644256,0.99273,2014.6,2014.5,2.7297]
[1743021644755,0.99278,2014.5,2014.4,45.00063]
[1743021644954,0.99278,2014.5,2014.4,46.38633]
[1743021645154,0.99274,2014.6,2014.5,0.99274]
[1743021645354,1.3122,2014.7,2014.6,0.99273]
[1743021645655,1.3122,2014.7,2014.6,1.64823]
[1743021645853,1.3122,2014.7,2014.6,2.36753]
[1743021646255,1.3122,2014.7,2014.6,43.16753]
[1743021646552,2.30488,2014.7,2014.6,43.16753]
[1743021646754,1.3122,2014.7,2014.6,43.16753]
[1743021647965,2.30488,2014.7,2014.6,43.16753]
[1743021648154,1.3122,2014.7,2014.6,43.16753]
[1743021650464,2.30488,2014.7,2014.6,43.16753]
[1743021650864,2.30488,2014.7,2014.6,41.79273]
[1743021651166,3.02098,2014.7,2014.6,0.99273]
[1743021652460,0.99273,2014.6,2014.5,43.10034]
[1743021652768,2.97273,2014.6,2014.5,43.10034]
[1743021655471,2.97273,2014.6,2014.5,2.30034]
[1743021656272,2.97273,2014.6,2014.5,2.30038]
[1743021656772,2.97273,2014.6,2014.5,0.99278]
[1743021657574,0.99278,2014.5,2014.4,6.97551]
[1743021657767,2.41378,2014.5,2014.4,6.97551]
[1743021660373,2.41378,2014.5,2014.4,3.2078]
[1743021660575,0.99283,2014.4,2014.3,0.00496339]
[1743021660778,2.95883,2014.4,2014.3,0.00496339]
[1743021663176,2.95883,2014.4,2014.3,0.99784339]
[1743021663381,2.95883,2014.4,2014.3,0.00496339]
[1743021663972,2.95883,2014.4,2014.3,0.99784339]
[1743021664681,2.95883,2014.4,2014.3,0.00496339]
[1743021673583,0.99302,2014.0,2013.9,1.4377]
[1743021673885,0.99302,2014.0,2013.9,0.99307]
[1743021674091,0.99302,2014.0,2013.9,2.43077]
[1743021674584,2.35192,2014.0,2013.9,2.43077]
[1743021675090,2.35192,2014.0,2013.8,45.3365]
[1743021675091,0.99307,2013.9,2013.8,4.20092]
[1743021675392,2.35197,2013.9,2013.8,5.63862]
[1743021676294,0.993,2014.1,2014.0,0.99297]
[1743021676694,0.99302,2014.0,2013.9,2.30733]
[1743021678297,2.35752,2014.0,2013.9,2.30733]
[1743021682996,2.35752,2014.0,2013.9,2.98356409]
[1743021683495,2.35752,2014.0,2013.9,2.30733]
[1743021685890,1.3645,2014.0,2013.9,2.30733]
[1743021686197,1.3645,2014.0,2013.9,2.98425452]
[1743021686888,1.3645,2014.0,2013.9,2.98425816]
[1743021687301,0.7048,2014.3,2014.2,0.99293]
[1743021687590,1.4323,2014.3,2014.2,4.20073]
[1743021688391,2.42518,2014.3,2014.2,4.20073]
[1743021688699,1.4323,2014.3,2014.2,4.20073]
[1743021689394,1.4323,2014.3,2014.2,4.87800612]
[1743021689798,0.99271,2014.7,2014.6,0.99272]
[1743021690096,1.4331,2014.5,2014.4,0.99283]
[1743021690305,1.4331,2014.5,2014.4,3.83463628]
[1743021690596,2.35452,2014.7,2014.6,0.99273]
[1743021690597,0.7099,2014.7,2014.6,0.99273]
[1743021690799,1.4331,2014.7,2014.6,0.99273]
[1743021691201,1.4331,2014.7,2014.6,1.66363]
[1743021691594,2.42578,2014.7,2014.6,1.66363]
[1743021691795,1.4331,2014.7,2014.6,1.66363]
[1743021693202,0.99278,2014.5,2014.4,4.3018]
[1743021693404,0.99278,2014.5,2014.4,0.9928]
[1743021693798,2.41678,2014.5,2014.4,0.9928]
[1743021695696,0.99278,2014.5,2014.4,0.9928]
[1743021698491,2.4817,2014.7,2014.3,0.99285]
[1743021698492,0.99285,2014.4,2014.3,0.99285]
[1743021708507,0.99288,2014.3,2014.2,4.20073]
[1743021709310,0.99302,2014.1,2013.9,3.2078]
[1743021709499,0.99302,2014.0,2013.9,7.50883]
[1743021709807,0.99302,2014.0,2013.9,8.18571149]
[1743021710003,0.99302,2014.0,2013.9,8.81413613]
[1743021710310,0.99302,2014.0,2013.9,5.50613613]
[1743021710509,0.99302,2014.0,2013.9,4.87771149]
[1743021711498,0.99293,2014.3,2014.2,0.99288]
[1743021720408,0.99293,2014.3,2014.2,4.20068]
[1743021720613,0.99287,2014.4,2014.3,0.99283]
[1743021725018,0.99288,2014.3,2014.2,4.20068]
[1743021727317,3.2078,2014.3,2013.9,3.2078]
[1743021727621,0.99302,2014.1,2014.0,1.67119842]
[1743021727814,0.99302,2014.1,2014.0,0.99302]
[1743021728014,0.99302,2014.0,2013.9,4.20083]
[1743021728214,0.99302,2014.0,2013.9,4.8790634]
[1743021729313,0.99302,2014.0,2013.9,4.20083]
[1743021733626,0.99302,2014.0,2013.9,4.87860402]
[1743021734025,3.08199,2014.1,2014.0,0.99302]
[1743021734220,2.37099,2014.1,2014.0,2.29512]
[1743021736333,2.37099,2014.1,2014.0,3.00352]
[1743021737823,1.378,2014.1,2014.0,3.00352]
[1743021738623,2.37097,2014.1,2014.0,3.00352]
[1743021739223,1.378,2014.1,2014.0,3.00352]
[1743021739425,2.37097,2014.1,2014.0,3.00352]
[1743021740432,2.67097,2014.1,2014.0,3.00352]
[1743021741424,2.67097,2014.1,2014.0,2.29512]
[1743021741631,0.99302,2014.0,2013.9,3.2078]
[1743021741825,0.99322,2013.7,2013.6,3.2078]
[1743021742024,0.99322,2013.7,2013.6,6.26041478]
[1743021742332,3.08762,2013.7,2013.6,6.89055147]
[1743021742526,3.77642,2013.7,2013.6,6.89055147]
[1743021742730,3.77642,2013.7,2013.6,4.51667147]
[1743021742923,3.77642,2013.7,2013.6,5.50989147]
[1743021743126,3.77642,2013.7,2013.6,4.51667147]
[1743021743736,3.77642,2013.7,2013.6,3.88653478]
[1743021743934,2.48306,2013.6,2013.2,3.2078]
[1743021744130,0.99337,2013.3,2013.2,0.9934]
[1743021744332,0.99337,2013.3,2013.2,45.0012]
[1743021745034,2.32507,2013.3,2013.2,45.0012]
[1743021747437,0.99352,2013.1,2013.0,0.99351]
[1743021747939,0.99352,2013.1,2013.0,43.12451]
[1743021750643,0.99352,2013.1,2013.0,43.77901]
[1743021750941,1.3707,2013.2,2013.0,43.77901]
[1743021750942,2.36416,2013.2,2013.1,0.99347]
[1743021751239,1.3707,2013.2,2013.1,0.99347]
[1743021751447,1.3707,2013.2,2013.1,3.01717]
[1743021751837,1.3707,2013.2,2013.1,43.81717]
[1743021755341,0.9933,2013.5,2013.4,0.99327]
[1743021755542,1.3996,2013.5,2013.4,0.99332]
[1743021756045,1.3996,2013.5,2013.4,3.08922]
[1743021756442,2.39287,2013.5,2013.4,3.08922]
[1743021757143,2.39287,2013.5,2013.4,2.37062]
[1743021758548,0.99332,2013.4,2013.3,0.99334]
[1743021758746,2.31832,2013.4,2013.3,0.99334]
[1743021759239,0.99337,2013.3,2013.2,4.20118]
[1743021759444,3.63337,2013.3,2013.2,4.20118]
[1743021759649,2.64,2013.3,2013.2,5.51168]
[1743021763240,3.63337,2013.3,2013.2,4.20118]
[1743021764053,3.63337,2013.3,2013.2,5.60598]
[1743021770247,3.63337,2013.3,2013.2,6.28513694]
[1743021771150,3.63337,2013.3,2013.2,6.2852487]
[1743021771852,3.63337,2013.3,2013.2,6.91630216]
[1743021772949,3.63337,2013.3,2013.2,6.91723344]
[1743021773150,3.63337,2013.3,2013.2,6.9172056]
[1743021774948,3.63337,2013.3,2013.2,6.23703346]
[1743021775150,3.63337,2013.3,2013.2,6.91771515]
[1743021776950,3.63337,2013.3,2013.2,6.91775488]
[1743021778261,1.325,2013.3,2013.2,6.91775488]
[1743021778557,1.325,2013.3,2013.2,7.63315488]
[1743021779157,0.00744509,2013.6,2013.5,0.99327]
[1743021779463,0.00744509,2013.6,2013.5,4.88179142]
[1743021779760,0.00744509,2013.6,2013.5,5.51284488]
[1743021780757,0.00744509,2013.6,2013.5,6.91268089]
[1743021780758,2.12154509,2013.6,2013.5,6.91268089]
[1743021781555,3.83086509,2013.6,2013.5,6.91268089]
[1743021781755,2.83764509,2013.6,2013.5,6.91268089]
[1743021781958,2.83764509,2013.6,2013.5,6.91264003]
[1743021782560,0.00744509,2013.6,2013.5,6.91264003]
[1743021782764,1.335,2014.0,2013.7,0.99317]
[1743021783059,0.3,2014.1,2014.0,0.99302]
[1743021783263,0.3,2014.1,2014.0,2.30353902]
[1743021783460,0.3,2014.1,2014.0,2.35998437]
[1743021783761,0.3,2014.1,2014.0,2.35985092]
[1743021783958,0.3,2014.1,2014.0,2.98983522]
[1743021784262,0.3,2014.1,2014.0,4.34143522]
[1743021784651,1.6851,2014.1,2014.0,3.71145092]
[1743021785763,1.6851,2014.1,2014.0,3.71033481]
[1743021786266,1.6851,2014.1,2014.0,3.03282]
[1743021787064,1.6851,2014.1,2014.0,6.33682]
[1743021787568,3.7754,2014.1,2014.0,6.33682]